fUSD/lending_fUSD_20250202
["ID","MTS","AMOUNT","RATE_DAILY","PERIOD"]
[351279473,1738505509506,-888.7,0.00011917,2]
[351279474,1738505509516,-4605.95,0.00011917,2]
[351279475,1738505509529,-2359.63,0.00011917,2]
[351279476,1738505509539,-892.49,0.00011917,2]
[351279477,1738505509549,-871.23,0.00011917,2]
[351279478,1738505509558,-1094.04,0.00011917,2]
[351279479,1738505509570,-6442.67,0.00011917,2]
[351279480,1738505509580,-500.0,0.00011917,2]
[351279481,1738505509590,-2052.81,0.00011917,2]
[351279482,1738505509601,-1297.27,0.00011917,2]
[351279483,1738505509610,-155.44344928,0.00011917,2]
[351279484,1738505509620,-2655.71,0.00011917,2]
[351279485,1738505509629,-1885.94,0.00011917,2]
[351279486,1738505509639,-500.0,0.00011917,2]
[351279487,1738505509649,-500.0,0.00011917,2]
[351279488,1738505509658,-500.0,0.00011917,2]
[351279489,1738505509667,-10441.41,0.00011917,2]
[351279490,1738505509676,-1553.08,0.00011917,2]
[351279491,1738505509686,-500.0,0.00011917,2]
[351279492,1738505509695,-1012.3,0.00011917,2]
[351279493,1738505509704,-500.0,0.00011917,2]
[351279494,1738505509714,-4514.04,0.00011917,2]
[351279495,1738505509725,-3003.61,0.00011917,2]
[351279496,1738505509734,-2902.94,0.00011917,2]
[351279497,1738505509744,-1964.45,0.00011917,2]
[351279498,1738505509754,-4716.6,0.00011917,2]
[351279499,1738505509764,-500.0,0.00011917,2]
[351279500,1738505509773,-1593.35,0.00011917,2]
[351279501,1738505509783,-500.0,0.00011917,2]
[351279502,1738505509793,-1637.22,0.00011917,2]
[351279503,1738505509803,-3416.51,0.00011917,2]
[351279504,1738505509813,-882.55,0.00011917,2]
[351279505,1738505509822,-500.0,0.00011917,2]
[351279506,1738505509831,-500.0,0.00011917,2]
[351279507,1738505509841,-4127.67,0.00011917,2]
[351279508,1738505509850,-9172.95,0.00011917,2]
[351279509,1738505509860,-716.69,0.00011917,2]
[351279510,1738505509869,-500.0,0.00011917,2]
[351279511,1738505509879,-500.0,0.00011917,2]
[351279512,1738505509888,-3935.05,0.00011917,2]
[351279513,1738505509897,-994.51,0.00011917,2]
[351279514,1738505509907,-500.0,0.00011917,2]
[351279515,1738505509917,-500.0,0.00011917,2]
[351279516,1738505509926,-2231.33,0.00011917,2]
[351279517,1738505509936,-646.36,0.00011917,2]
[351279518,1738505509946,-7703.46,0.00011917,2]
[351279519,1738505509956,-612.75,0.00011917,2]
[351279520,1738505509968,-6130.86,0.00011917,2]
[351279521,1738505509979,-1008.29,0.00011917,2]
[351279522,1738505509988,-4888.75,0.00011917,2]
[351279523,1738505509998,-4468.98,0.00011917,2]
[351279524,1738505510010,-874.52,0.00011917,2]
[351279525,1738505510019,-500.0,0.00011917,2]
[351279526,1738505510028,-7017.85,0.00011917,2]
[351279527,1738505510037,-7067.83,0.00011917,2]
[351279528,1738505510046,-500.0,0.00011917,2]
[351279529,1738505510056,-504.51,0.00011917,2]
[351279530,1738505510066,-1694.57,0.00011917,2]
[351279531,1738505510075,-500.0,0.00011917,2]
[351279532,1738505510085,-809.09,0.00011917,2]
[351279533,1738505510094,-1463.68,0.00011917,2]
[351279534,1738505510104,-500.0,0.00011917,2]
[351279535,1738505510113,-500.0,0.00011917,2]
[351279536,1738505510123,-957.1,0.00011917,2]
[351279537,1738505510132,-517.09223173,0.00011917,2]
[351279538,1738505510142,-25450.62,0.00011917,2]
[351279539,1738505510151,-5901.35,0.00011917,2]
[351279540,1738505510161,-3194.77,0.00011917,2]
[351279541,1738505510171,-972.11,0.00011917,2]
[351279542,1738505510180,-500.0,0.00011917,2]
[351279543,1738505510190,-500.0,0.00011917,2]
[351279544,1738505510199,-978.28,0.00011917,2]
[351279545,1738505510208,-1927.34,0.00011917,2]
[351279546,1738505510218,-1313.38,0.00011917,2]
[351279547,1738505510227,-2290.65,0.00011917,2]
[351279548,1738505510237,-1822.98,0.00011917,2]
[351279549,1738505510247,-500.0,0.00011917,2]
[351279550,1738505510256,-500.0,0.00011917,2]
[351279551,1738505510265,-500.0,0.00011917,2]
[351279552,1738505510275,-778.33,0.00011917,2]
[351279553,1738505510285,-2811.74,0.00011917,2]
[351279554,1738505510294,-500.0,0.00011917,2]
[351279555,1738505510304,-500.0,0.00011917,2]
[351279556,1738505510314,-4241.49,0.00011917,2]
[351279557,1738505510324,-2753.15,0.00011917,2]
[351279558,1738505510333,-3179.79,0.00011917,2]
[351279559,1738505510342,-11875.49,0.00011917,2]
[351279560,1738505510352,-590.79,0.00011917,2]
[351279561,1738505510361,-500.0,0.00011917,2]
[351279562,1738505510371,-2422.99,0.00011917,2]
[351279563,1738505510380,-500.0,0.00011917,2]
[351279564,1738505510390,-1805.01,0.00011917,2]
[351279565,1738505510400,-500.0,0.00011917,2]
[351279566,1738505510409,-500.0,0.00011917,2]
[351279567,1738505510419,-8941.69,0.00011917,2]
[351279568,1738505510428,-1720.61,0.00011917,2]
[351279569,1738505510438,-890.83,0.00011917,2]
[351279570,1738505510448,-500.0,0.00011917,2]
[351279571,1738505510457,-500.0,0.00011917,2]
[351279572,1738505510467,-924.98,0.00011917,2]
[351279573,1738505510477,-2796.09,0.00011917,2]
[351279574,1738505510486,-753.96,0.00011917,2]
[351279575,1738505510496,-2827.17,0.00011917,2]
[351279576,1738505510505,-1515.55,0.00011917,2]
[351279577,1738505510515,-500.0,0.00011917,2]
[351279578,1738505510526,-500.0,0.00011917,2]
[351279579,1738505510539,-8022.15,0.00011917,2]
[351279580,1738505510549,-500.0,0.00011917,2]
[351279581,1738505510558,-1171.94,0.00011917,2]
[351279582,1738505510568,-741.26,0.00011917,2]
[351279583,1738505510578,-1314.16,0.00011917,2]
[351279584,1738505510588,-500.0,0.00011917,2]
[351279585,1738505510598,-500.0,0.00011917,2]
[351279586,1738505510609,-596.08,0.00011917,2]
[351279587,1738505510619,-2587.99,0.00011917,2]
[351279588,1738505510628,-500.0,0.00011917,2]
[351279589,1738505510638,-155.292379,0.00011917,2]
[351279590,1738505510648,-770.44,0.00011917,2]
[351279591,1738505510657,-3707.36,0.00011917,2]
[351279592,1738505510667,-500.0,0.00011917,2]
[351279593,1738505510676,-651.22,0.00011917,2]
[351279594,1738505510685,-500.0,0.00011917,2]
[351279595,1738505510695,-500.0,0.00011917,2]
[351279596,1738505510704,-420.02322856,0.00011936,2]
[351279597,1738505510714,-43296.0,0.00011973,2]
[351279598,1738505510724,-502.36011826,0.00011973,2]
[351279599,1738505510734,-700.000001,0.0001199,2]
[351279600,1738505510743,-2011.8674249,0.0001199,2]
[351279601,1738505510753,-8012.4731025,0.0001199,2]
[351279602,1738505510762,-176.65,0.00011993,2]
[351279603,1738505510771,-7701.43071869,0.00011998,2]
[351279604,1738505510781,-500.0,0.00011998,2]
[351279605,1738505510790,-300.0,0.00011999,2]
[351279606,1738505510799,-1861755.98391483,0.00012,2]
[351279607,1738505510808,-3759016.74619967,0.00012,2]
[351279608,1738505510817,-250000.0,0.00012,2]
[351279609,1738505510827,-150.0,0.00012,2]
[351279610,1738505510836,-151.0,0.00012,2]
[351279611,1738505510845,-151.0,0.00012,2]
[351279612,1738505510854,-151.0,0.00012,2]
[351279613,1738505510863,-151.0,0.00012,2]
[351279614,1738505510872,-500.0,0.00012026,2]
[351279615,1738505510881,-587.0,0.00012049,2]
[351279616,1738505510890,-500.0,0.00012053,2]
[351279617,1738505510899,-500.0,0.00012053,2]
[351279618,1738505510908,-151.0,0.00012054,2]
[351279619,1738505510917,-152.951899,0.00012054,2]
[351279620,1738505510926,-500.0,0.00012054,2]
[351279621,1738505510936,-500.0,0.00012054,2]
[351279622,1738505510945,-559.46,0.00012054,2]
[351279623,1738505510954,-534.94322166,0.00012054,2]
[351279624,1738505510963,-500.0,0.00012054,2]
[351279625,1738505510974,-803.7,0.00012054,2]
[351279626,1738505510983,-500.0,0.00012054,2]
[351279627,1738505510992,-500.0,0.00012054,2]
[351279628,1738505511001,-500.0,0.00012054,2]
[351279629,1738505511010,-801.06,0.00012054,2]
[351279630,1738505511019,-500.0,0.00012054,2]
[351279631,1738505511029,-500.0,0.00012054,2]
[351279632,1738505511038,-773.23,0.00012054,2]
[351279633,1738505511047,-615.51850375,0.00012054,2]
[351279634,1738505511057,-500.0,0.00012054,2]
[351279635,1738505511066,-759.9,0.00012054,2]
[351279636,1738505511075,-1260.15,0.00012054,2]
[351279637,1738505511084,-589.03,0.00012054,2]
[351279638,1738505511094,-500.0,0.00012054,2]
[351279639,1738505511103,-500.0,0.00012054,2]
[351279640,1738505511112,-500.0,0.00012054,2]
[351279641,1738505511121,-500.0,0.00012054,2]
[351279642,1738505511131,-1063.41,0.00012054,2]
[351279643,1738505511140,-673.02,0.00012054,2]
[351279644,1738505511149,-500.0,0.00012054,2]
[351279645,1738505511158,-821.68,0.00012054,2]
[351279646,1738505511166,-549.88,0.00012054,2]
[351279647,1738505511176,-500.0,0.00012054,2]
[351279648,1738505511185,-500.0,0.00012054,2]
[351279649,1738505511199,-703.15,0.00012054,2]
[351279650,1738505511209,-500.0,0.00012054,2]
[351279651,1738505511444,-828.9,0.00012054,2]
[351279652,1738505511454,-627.47,0.00012054,2]
[351279653,1738505511463,-731.11,0.00012054,2]
[351279654,1738505511474,-500.0,0.00012054,2]
[351279655,1738505511483,-500.0,0.00012054,2]
[351279656,1738505511493,-500.0,0.00012054,2]
[351279657,1738505511503,-592.69,0.00012054,2]
[351279658,1738505511512,-500.0,0.00012054,2]
[351279659,1738505511521,-540.46982911,0.00012054,2]
[351279660,1738505511532,-500.0,0.00012054,2]
[351279661,1738505511543,-625.97,0.00012054,2]
[351279662,1738505511552,-500.0,0.00012054,2]
[351279663,1738505511562,-500.0,0.00012054,2]
[351279664,1738505511571,-500.0,0.00012054,2]
[351279665,1738505511582,-500.0,0.00012054,2]
[351279666,1738505511592,-661.86,0.00012054,2]
[351279667,1738505511603,-552.57,0.00012054,2]
[351279668,1738505511612,-3015.63,0.00012054,2]
[351279669,1738505511623,-500.0,0.00012054,2]
[351279670,1738505511633,-635.12,0.00012054,2]
[351279671,1738505511643,-1112.86,0.00012054,2]
[351279672,1738505511653,-511.08,0.00012054,2]
[351279673,1738505511663,-910.85,0.00012054,2]
[351279674,1738505511673,-275.94460954,0.00012054,2]
[351279675,1738505511683,-500.0,0.00012054,2]
[351279676,1738505511693,-500.0,0.00012054,2]
[351279677,1738505511703,-738.14,0.00012054,2]
[351279678,1738505511713,-500.0,0.00012054,2]
[351279679,1738505511724,-1482.76,0.00012054,2]
[351279680,1738505511733,-500.0,0.00012054,2]
[351279681,1738505511743,-500.0,0.00012054,2]
[351279682,1738505511752,-500.0,0.00012054,2]
[351279683,1738505511762,-545.77,0.00012054,2]
[351279684,1738505511772,-500.0,0.00012054,2]
[351279685,1738505511782,-735.2,0.00012054,2]
[351279686,1738505511792,-717.38,0.00012054,2]
[351279687,1738505511802,-500.0,0.00012054,2]
[351279688,1738505511811,-500.0,0.00012054,2]
[351279689,1738505511822,-2333.39,0.00012054,2]
[351279690,1738505511832,-618.28,0.00012054,2]
[351279691,1738505511842,-500.0,0.00012054,2]
[351279692,1738505511852,-2305.89,0.00012054,2]
[351279693,1738505511862,-703.3,0.00012054,2]
[351279694,1738505511872,-2217.46,0.00012054,2]
[351279695,1738505511883,-573.42,0.00012054,2]
[351279696,1738505511892,-500.0,0.00012054,2]
[351279697,1738505511902,-471.26304839,0.00012054,2]
[351279698,1738505511912,-2053.36,0.00012054,2]
[351279699,1738505511921,-1106.04,0.00012054,2]
[351279700,1738505511931,-2139.13,0.00012054,2]
[351279701,1738505511941,-165.30101364,0.00012054,2]
[351279702,1738505511951,-500.0,0.00012054,2]
[351279703,1738505511960,-500.0,0.00012054,2]
[351279704,1738505511971,-1316.15,0.00012054,2]
[351279705,1738505511981,-500.0,0.00012054,2]
[351279706,1738505511991,-500.0,0.00012054,2]
[351279707,1738505512001,-500.0,0.00012054,2]
[351279708,1738505512011,-548.83,0.00012054,2]
[351279709,1738505512022,-553.21,0.00012054,2]
[351279710,1738505512031,-525.3,0.00012054,2]
[351279711,1738505512040,-500.0,0.00012054,2]
[351279712,1738505512049,-2325.54,0.00012054,2]
[351279713,1738505512059,-1109.74,0.00012054,2]
[351279714,1738505512068,-500.44,0.00012054,2]
[351279715,1738505512078,-681.73,0.00012054,2]
[351279716,1738505512087,-677.93,0.00012054,2]
[351279717,1738505512096,-264.82322173,0.00012054,2]
[351279718,1738505512106,-513.34,0.00012054,2]
[351279719,1738505512115,-226.42167289,0.00012054,2]
[351279720,1738505512125,-527.19229489,0.00012054,2]
[351279721,1738505512135,-1154.2,0.00012054,2]
[351279722,1738505512144,-2022.69,0.00012054,2]
[351279723,1738505512154,-685.35,0.00012054,2]
[351279724,1738505512163,-500.0,0.00012054,2]
[351279725,1738505512172,-500.0,0.00012054,2]
[351279726,1738505512182,-500.0,0.00012054,2]
[351279727,1738505512192,-550.64,0.00012054,2]
[351279728,1738505512202,-500.0,0.00012054,2]
[351279729,1738505512212,-1342.11,0.00012054,2]
[351279730,1738505512222,-500.0,0.00012054,2]
[351279731,1738505512231,-2093.39,0.00012054,2]
[351279732,1738505512241,-880.18,0.00012054,2]
[351279733,1738505512250,-1643.92,0.00012054,2]
[351279734,1738505512261,-500.0,0.00012054,2]
[351279735,1738505512271,-793.33,0.00012054,2]
[351279736,1738505512281,-500.0,0.00012054,2]
[351279737,1738505512291,-500.0,0.00012054,2]
[351279738,1738505512301,-500.0,0.00012054,2]
[351279739,1738505512310,-1232.16,0.00012054,2]
[351279740,1738505512320,-500.0,0.00012054,2]
[351279741,1738505512329,-588.54,0.00012054,2]
[351279742,1738505512338,-500.0,0.00012054,2]
[351279743,1738505512348,-534.34,0.00012054,2]
[351279744,1738505512358,-538.87,0.00012054,2]
[351279745,1738505512367,-793.28,0.00012054,2]
[351279746,1738505512376,-500.0,0.00012054,2]
[351279747,1738505512386,-1592.88,0.00012054,2]
[351279748,1738505512395,-616.53,0.00012054,2]
[351279749,1738505512405,-500.0,0.00012054,2]
[351279750,1738505512415,-500.0,0.00012054,2]
[351279751,1738505512425,-1854.87,0.00012054,2]
[351279752,1738505512435,-1690.33,0.00012054,2]
[351279753,1738505512444,-500.0,0.00012054,2]
[351279754,1738505512454,-500.0,0.00012054,2]
[351279755,1738505512463,-534.43,0.00012054,2]
[351279756,1738505512475,-508.93,0.00012054,2]
[351279757,1738505512485,-500.0,0.00012054,2]
[351279758,1738505512495,-637.72,0.00012054,2]
[351279759,1738505512506,-1150.84,0.00012054,2]
[351279760,1738505512516,-508.66,0.00012054,2]
[351279761,1738505512530,-586.07,0.00012054,2]
[351279762,1738505512542,-500.0,0.00012054,2]
[351279763,1738505512552,-800.25,0.00012054,2]
[351279764,1738505512562,-731.54,0.00012054,2]
[351279765,1738505512575,-1305.07,0.00012054,2]
[351279766,1738505512585,-1841.9,0.00012054,2]
[351279767,1738505512595,-734.22,0.00012054,2]
[351279768,1738505512606,-500.0,0.00012054,2]
[351279769,1738505512616,-1731.58,0.00012054,2]
[351279770,1738505512626,-573.1,0.00012054,2]
[351279771,1738505512636,-500.0,0.00012054,2]
[351279772,1738505512646,-500.0,0.00012054,2]
[351279773,1738505512655,-1366.78,0.00012054,2]
[351279774,1738505512665,-500.0,0.00012054,2]
[351279775,1738505512674,-500.0,0.00012054,2]
[351279776,1738505512683,-1447.06,0.00012054,2]
[351279777,1738505512708,-500.0,0.00012054,2]
[351279778,1738505512728,-955.56,0.00012054,2]
[351279779,1738505512749,-521.42,0.00012054,2]
[351279780,1738505512767,-904.27,0.00012054,2]
[351279781,1738505512786,-500.0,0.00012054,2]
[351279782,1738505512806,-854.39,0.00012054,2]
[351279783,1738505512826,-500.0,0.00012054,2]
[351279784,1738505512847,-2762.56,0.00012054,2]
[351279785,1738505512866,-500.0,0.00012054,2]
[351279786,1738505512884,-500.0,0.00012054,2]
[351279787,1738505512898,-666.98,0.00012054,2]
[351279788,1738505512918,-783.0,0.00012054,2]
[351279789,1738505512932,-500.0,0.00012054,2]
[351279790,1738505512951,-2104.01,0.00012054,2]
[351279791,1738505512968,-2287.85,0.00012054,2]
[351279792,1738505512983,-500.0,0.00012054,2]
[351279793,1738505513000,-944.74,0.00012054,2]
[351279794,1738505513017,-505.82,0.00012054,2]
[351279795,1738505513034,-738.27,0.00012054,2]
[351279796,1738505513051,-500.0,0.00012054,2]
[351279797,1738505513067,-1519.92,0.00012054,2]
[351279798,1738505513083,-1297.85,0.00012054,2]
[351279799,1738505513099,-500.0,0.00012054,2]
[351279800,1738505513115,-500.0,0.00012054,2]
[351279801,1738505513132,-500.0,0.00012054,2]
[351279802,1738505513149,-500.0,0.00012054,2]
[351279803,1738505513165,-500.0,0.00012054,2]
[351279804,1738505513181,-500.0,0.00012054,2]
[351279805,1738505513197,-643.77,0.00012054,2]
[351279806,1738505513214,-784.02,0.00012054,2]
[351279807,1738505513231,-500.0,0.00012054,2]
[351279808,1738505513249,-500.0,0.00012054,2]
[351279809,1738505513266,-231.14096892,0.00012054,2]
[351279810,1738505513282,-500.0,0.00012054,2]
[351279811,1738505513299,-500.0,0.00012054,2]
[351279812,1738505513316,-529.45,0.00012054,2]
[351279813,1738505513333,-500.0,0.00012054,2]
[351279814,1738505513349,-500.0,0.00012054,2]
[351279815,1738505513364,-1418.55,0.00012054,2]
[351279816,1738505513380,-500.0,0.00012054,2]
[351279817,1738505513398,-517.07,0.00012054,2]
[351279818,1738505513414,-500.0,0.00012054,2]
[351279819,1738505513432,-2783.69,0.00012054,2]
[351279820,1738505513447,-1420.23,0.00012054,2]
[351279821,1738505513464,-1225.35,0.00012054,2]
[351279822,1738505513482,-2181.51,0.00012054,2]
[351279823,1738505513498,-500.0,0.00012054,2]
[351279824,1738505513514,-500.0,0.00012054,2]
[351279825,1738505513533,-500.0,0.00012054,2]
[351279826,1738505513550,-942.19,0.00012054,2]
[351279827,1738505513568,-507.86,0.00012054,2]
[351279828,1738505513584,-844.52,0.00012054,2]
[351279829,1738505513601,-500.0,0.00012054,2]
[351279830,1738505513617,-1267.86,0.00012054,2]
[351279831,1738505513633,-500.0,0.00012054,2]
[351279832,1738505513649,-500.0,0.00012054,2]
[351279833,1738505513665,-1642.95,0.00012054,2]
[351279834,1738505513680,-632.5,0.00012054,2]
[351279835,1738505513696,-500.0,0.00012054,2]
[351279836,1738505513712,-717.96,0.00012054,2]
[351279837,1738505513729,-862.89,0.00012054,2]
[351279838,1738505513745,-500.0,0.00012054,2]
[351279839,1738505513761,-978.15,0.00012054,2]
[351279840,1738505513778,-1851.1,0.00012054,2]
[351279841,1738505513793,-591.76,0.00012054,2]
[351279842,1738505513810,-722.67,0.00012054,2]
[351279843,1738505513825,-500.0,0.00012054,2]
[351279844,1738505513840,-500.0,0.00012054,2]
[351279845,1738505513855,-520.38,0.00012054,2]
[351279846,1738505513870,-500.0,0.00012054,2]
[351279847,1738505513885,-500.0,0.00012054,2]
[351279848,1738505513900,-1708.12,0.00012054,2]
[351279849,1738505513916,-523.57,0.00012054,2]
[351279850,1738505513932,-500.0,0.00012054,2]
[351279851,1738505513948,-500.0,0.00012054,2]
[351279852,1738505513963,-760.88,0.00012054,2]
[351279853,1738505513979,-500.0,0.00012054,2]
[351279854,1738505513994,-500.0,0.00012054,2]
[351279855,1738505514008,-500.0,0.00012054,2]
[351279856,1738505514024,-811.43,0.00012054,2]
[351279857,1738505514039,-1175.0,0.00012054,2]
[351279858,1738505514060,-1373.61,0.00012054,2]
[351279859,1738505514076,-1105.09,0.00012054,2]
[351279860,1738505514091,-747.24,0.00012054,2]
[351279861,1738505514107,-1419.66,0.00012054,2]
[351279862,1738505514123,-899.67,0.00012054,2]
[351279863,1738505514140,-500.0,0.00012054,2]
[351279864,1738505514156,-500.0,0.00012054,2]
[351279865,1738505514171,-500.0,0.00012054,2]
[351279866,1738505514187,-814.85,0.00012054,2]
[351279867,1738505514204,-967.34,0.00012054,2]
[351279868,1738505514218,-984.06,0.00012054,2]
[351279869,1738505514234,-709.72,0.00012054,2]
[351279870,1738505514250,-336.19601293,0.00012054,2]
[351279871,1738505514267,-580.72,0.00012054,2]
[351279872,1738505514283,-500.0,0.00012054,2]
[351279873,1738505514299,-509.47,0.00012054,2]
[351279874,1738505514314,-1025.92,0.00012054,2]
[351279875,1738505514330,-1529.4,0.00012054,2]
[351279876,1738505514346,-500.0,0.00012054,2]
[351279877,1738505514362,-736.8,0.00012054,2]
[351279878,1738505514377,-500.0,0.00012054,2]
[351279879,1738505514393,-500.0,0.00012054,2]
[351279880,1738505514409,-500.0,0.00012054,2]
[351279881,1738505514424,-500.0,0.00012054,2]
[351279882,1738505514440,-500.0,0.00012054,2]
[351279883,1738505514455,-500.0,0.00012054,2]
[351279884,1738505514472,-500.0,0.00012054,2]
[351279885,1738505514487,-794.58,0.00012054,2]
[351279886,1738505514504,-500.0,0.00012054,2]
[351279887,1738505514519,-515.19,0.00012054,2]
[351279888,1738505514538,-551.09,0.00012054,2]
[351279889,1738505514554,-500.0,0.00012054,2]
[351279890,1738505514571,-500.0,0.00012054,2]
[351279891,1738505514587,-1457.11,0.00012054,2]
[351279892,1738505514602,-500.0,0.00012054,2]
[351279893,1738505514619,-848.94,0.00012054,2]
[351279894,1738505514633,-562.76,0.00012054,2]
[351279895,1738505514649,-512.04,0.00012054,2]
[351279896,1738505514664,-1457.16,0.00012054,2]
[351279897,1738505514680,-500.0,0.00012054,2]
[351279898,1738505514695,-500.0,0.00012054,2]
[351279899,1738505514709,-500.0,0.00012054,2]
[351279900,1738505514726,-1032.24,0.00012054,2]
[351279901,1738505514994,-1061.96,0.00012054,2]
[351279902,1738505515019,-510.71,0.00012054,2]
[351279903,1738505515028,-557.31148772,0.00012054,2]
[351279904,1738505515037,-500.0,0.00012054,2]
[351279905,1738505515046,-1015.65,0.00012054,2]
[351279906,1738505515055,-679.22,0.00012054,2]
[351279907,1738505515064,-1177.9,0.00012054,2]
[351279908,1738505515073,-500.0,0.00012054,2]
[351279909,1738505515083,-500.0,0.00012054,2]
[351279910,1738505515092,-584.42,0.00012054,2]
[351279911,1738505515101,-1657.79,0.00012054,2]
[351279912,1738505515110,-1057.32,0.00012054,2]
[351279913,1738505515119,-500.0,0.00012054,2]
[351279914,1738505515128,-500.0,0.00012054,2]
[351279915,1738505515136,-500.0,0.00012054,2]
[351279916,1738505515145,-737.32,0.00012054,2]
[351279917,1738505515154,-865.79,0.00012054,2]
[351279918,1738505515163,-1316.4,0.00012054,2]
[351279919,1738505515172,-500.0,0.00012054,2]
[351279920,1738505515181,-671.26,0.00012054,2]
[351279921,1738505515189,-751.62,0.00012054,2]
[351279922,1738505515199,-750.62,0.00012054,2]
[351279923,1738505515207,-1011.53,0.00012054,2]
[351279924,1738505515216,-500.0,0.00012054,2]
[351279925,1738505515226,-1248.28,0.00012054,2]
[351279926,1738505515235,-519.27,0.00012054,2]
[351279927,1738505515244,-500.0,0.00012054,2]
[351279928,1738505515253,-775.41,0.00012054,2]
[351279929,1738505515262,-500.0,0.00012054,2]
[351279930,1738505515272,-619.85145268,0.00012054,2]
[351279931,1738505515281,-650.78,0.00012054,2]
[351279932,1738505515290,-500.0,0.00012054,2]
[351279933,1738505515299,-787.2,0.00012054,2]
[351279934,1738505515309,-500.0,0.00012054,2]
[351279935,1738505515318,-500.0,0.00012054,2]
[351279936,1738505515328,-1398.59,0.00012054,2]
[351279937,1738505515337,-2098.34,0.00012054,2]
[351279938,1738505515347,-1717.3,0.00012054,2]
[351279939,1738505515356,-500.0,0.00012054,2]
[351279940,1738505515366,-535.92,0.00012054,2]
[351279941,1738505515375,-500.0,0.00012054,2]
[351279942,1738505515386,-500.0,0.00012054,2]
[351279943,1738505515396,-520.83,0.00012054,2]
[351279944,1738505515407,-500.0,0.00012054,2]
[351279945,1738505515417,-500.0,0.00012054,2]
[351279946,1738505515427,-1388.03,0.00012054,2]
[351279947,1738505515438,-696.21,0.00012054,2]
[351279948,1738505515447,-1438.93,0.00012054,2]
[351279949,1738505515457,-638.42,0.00012054,2]
[351279950,1738505515466,-1523.64,0.00012054,2]
[351279951,1738505515478,-500.0,0.00012054,2]
[351279952,1738505515488,-500.0,0.00012054,2]
[351279953,1738505515498,-1164.79,0.00012054,2]
[351279954,1738505515509,-500.0,0.00012054,2]
[351279955,1738505515519,-2008.34,0.00012054,2]
[351279956,1738505515538,-500.0,0.00012054,2]
[351279957,1738505515549,-867.5,0.00012054,2]
[351279958,1738505515560,-500.0,0.00012054,2]
[351279959,1738505515571,-930.83,0.00012054,2]
[351279960,1738505515581,-1142.86,0.00012054,2]
[351279961,1738505515591,-1063.97,0.00012054,2]
[351279962,1738505515601,-282.5709701,0.00012054,2]
[351279963,1738505515612,-5963.38,0.00012054,2]
[351279964,1738505515622,-528.98,0.00012054,2]
[351279965,1738505515632,-632.65,0.00012054,2]
[351279966,1738505515642,-939.46,0.00012054,2]
[351279967,1738505515652,-500.0,0.00012054,2]
[351279968,1738505515661,-2575.73,0.00012054,2]
[351279969,1738505515670,-1411.82,0.00012054,2]
[351279970,1738505515679,-500.0,0.00012054,2]
[351279971,1738505515688,-500.0,0.00012054,2]
[351279972,1738505515698,-500.0,0.00012054,2]